fUST/lending_fUST_20250516
["ID","MTS","AMOUNT","RATE_DAILY","PERIOD"]
[361229527,1747368638516,-500.0,0.00013693,2]
[361229528,1747368638525,-500.0,0.00013693,2]
[361229529,1747368638534,-500.0,0.00013693,2]
[361229530,1747368638544,-500.0,0.00013693,2]
[361229531,1747368638553,-500.0,0.00013693,2]
[361229532,1747368638562,-500.0,0.00013693,2]
[361229533,1747368638572,-500.0,0.00013693,2]
[361229534,1747368638581,-500.0,0.00013693,2]
[361229535,1747368638590,-500.0,0.00013693,2]
[361229536,1747368638599,-500.0,0.00013693,2]
[361229537,1747368638609,-500.0,0.00013693,2]
[361229538,1747368638618,-252.21365013,0.00013693,2]
[361229539,1747368638628,-152.77277066,0.00013693,2]
[361229540,1747368638637,-500.0,0.00013693,2]
[361229541,1747368638647,-500.0,0.00013693,2]
[361229542,1747368638657,-500.0,0.00013693,2]
[361229543,1747368638666,-435.11453461,0.00013693,2]
[361229544,1747368638675,-500.0,0.00013693,2]
[361229545,1747368638684,-500.0,0.00013693,2]
[361229546,1747368638694,-500.0,0.00013693,2]
[361229547,1747368638703,-500.0,0.00013693,2]
[361229548,1747368638712,-500.0,0.00013693,2]
[361229549,1747368638721,-500.0,0.00013693,2]
[361229550,1747368638730,-500.0,0.00013693,2]
[361229551,1747368638739,-500.0,0.00013693,2]
[361229552,1747368638748,-160.0,0.00013695,2]
[361229553,1747368638758,-500.0,0.00013697,2]
[361229554,1747368638767,-500.0,0.00013697,2]
[361229555,1747368638776,-325.8944356,0.00013697,2]
[361229556,1747368638785,-615.37277943,0.00013697,2]
[361229557,1747368638795,-300.0,0.00013697,2]
[361229558,1747368638804,-226.79202487,0.00013697,2]
[361229559,1747368638813,-627.34396347,0.00013697,2]
[361229560,1747368638822,-400.0,0.00013698,2]
[361229561,1747368638832,-281.62774334,0.00013698,2]
[361229562,1747368638841,-450.0,0.00013698,2]
[361229563,1747368638851,-400.0,0.00013698,2]
[361229564,1747368638860,-545.97663809,0.00013698,2]
[361229565,1747368638869,-400.0,0.00013698,2]
[361229566,1747368638878,-331.68146425,0.00013698,2]
[361229567,1747368638887,-290.16080414,0.00013698,2]
[361229568,1747368638897,-400.0,0.00013698,2]
[361229569,1747368638905,-400.0,0.00013698,2]
[361229570,1747368638914,-400.0,0.00013698,2]
[361229571,1747368638924,-450.0,0.00013698,2]
[361229572,1747368638933,-160.0,0.00013698,2]
[361229573,1747368638942,-450.0,0.00013698,2]
[361229574,1747368638951,-450.0,0.00013698,2]
[361229575,1747368638962,-450.0,0.00013698,2]
[361229576,1747368638972,-562.21,0.00013698,2]
[361229577,1747368638981,-450.0,0.00013698,2]
[361229578,1747368638991,-588.9,0.00013698,2]
[361229579,1747368639000,-450.0,0.00013698,2]
[361229580,1747368639009,-450.0,0.00013698,2]
[361229581,1747368639018,-494.44,0.00013698,2]
[361229582,1747368639028,-450.0,0.00013698,2]
[361229583,1747368639038,-730.24,0.00013698,2]
[361229584,1747368639049,-450.0,0.00013698,2]
[361229585,1747368639060,-409.26063339,0.00013698,2]
[361229586,1747368639069,-450.0,0.00013698,2]
[361229587,1747368639078,-450.0,0.00013698,2]
[361229588,1747368639087,-218.78690242,0.00013698,2]
[361229637,1747368927874,-2994.6487749,0.00012698,2]
[361229638,1747368927897,-652.68038405,0.00013447,2]
[361229639,1747368927919,-172.242119,0.00013598,2]
[361229640,1747368927940,-160.0,0.00013657,2]
[361229641,1747368927962,-422.39640784,0.00013657,2]
[361229642,1747368927988,-160.0,0.00013657,2]
[361229643,1747368928011,-300.0,0.00013696,2]
[361229644,1747368928033,-500.0,0.00013697,2]
[361229645,1747368928055,-500.0,0.00013697,2]
[361229646,1747368928313,-516.9747523,0.00013697,2]
[361229647,1747368928335,-159.45717051,0.00013697,2]
[361229648,1747368928357,-305.80151668,0.00013697,2]
[361229649,1747368928378,-450.0,0.00013698,2]
[361229650,1747368928398,-450.0,0.00013698,2]
[361229651,1747368928419,-450.0,0.00013698,2]
[361229652,1747368928443,-450.0,0.00013698,2]
[361229653,1747368928464,-450.0,0.00013698,2]
[361229654,1747368928486,-450.0,0.00013698,2]
[361229655,1747368928509,-399.2099649,0.00013698,2]
[361229656,1747368928530,-450.0,0.00013698,2]
[361229657,1747368928551,-151.0,0.00013698,2]
[361229658,1747368928572,-450.0,0.00013698,2]
[361229659,1747368928594,-450.0,0.00013698,2]
[361229660,1747368928615,-402.24455991,0.00013698,2]
[361229661,1747368928637,-450.0,0.00013698,2]
[361229662,1747368928658,-450.0,0.00013698,2]
[361229663,1747368928679,-450.0,0.00013698,2]
[361229664,1747368928700,-468.33,0.00013698,2]
[361229665,1747368928722,-566.35783747,0.00013698,2]
[361229666,1747368928745,-1159.14,0.00013698,2]
[361229667,1747368928769,-450.0,0.00013698,2]
[361229668,1747368928790,-450.0,0.00013698,2]
[361229669,1747368928812,-450.0,0.00013698,2]
[361229670,1747368928836,-151.0,0.00013698,2]
[361229671,1747368928858,-450.0,0.00013698,2]
[361229672,1747368928881,-450.0,0.00013698,2]
[361229673,1747368928904,-468.17,0.00013698,2]
[361229674,1747368928926,-450.0,0.00013698,2]
[361229675,1747368928948,-1027.76,0.00013698,2]
[361229676,1747368928969,-450.0,0.00013698,2]
[361229677,1747368928992,-450.0,0.00013698,2]
[361229678,1747368929014,-679.02,0.00013698,2]
[361229679,1747368929036,-772.94,0.00013698,2]
[361229680,1747368929059,-450.0,0.00013698,2]
[361229681,1747368929080,-464.44,0.00013698,2]
[361229682,1747368929103,-450.0,0.00013698,2]
[361229683,1747368929125,-818.93,0.00013698,2]
[361229684,1747368929146,-450.0,0.00013698,2]
[361229685,1747368929167,-151.0,0.00013698,2]
[361229686,1747368929190,-708.36,0.00013698,2]
[361229687,1747368929212,-450.0,0.00013698,2]
[361229688,1747368929235,-450.0,0.00013698,2]
[361229689,1747368929257,-450.0,0.00013698,2]
[361229690,1747368929279,-641.59,0.00013698,2]
[361229691,1747368929301,-450.0,0.00013698,2]
[361229692,1747368929324,-1404.33,0.00013698,2]
[361229693,1747368929346,-212.280538,0.00013698,2]
[361229694,1747368929369,-450.0,0.00013698,2]
[361229695,1747368929392,-1279.9,0.00013698,2]
[361229696,1747368929415,-752.48,0.00013698,2]
[361229697,1747368929442,-450.0,0.00013698,2]
[361229698,1747368929464,-450.0,0.00013698,2]
[361229699,1747368929486,-450.0,0.00013698,2]
[361229700,1747368929509,-450.0,0.00013698,2]
[361229701,1747368929532,-450.0,0.00013698,2]
[361229702,1747368929554,-729.22,0.00013698,2]
[361229703,1747368929576,-864.76,0.00013698,2]
[361229704,1747368929599,-450.0,0.00013698,2]
[361229705,1747368929621,-523.41,0.00013698,2]
[361229706,1747368929643,-403.37506686,0.00013698,2]
[361229707,1747368929666,-450.0,0.00013698,2]
[361229708,1747368929688,-450.0,0.00013698,2]
[361229709,1747368929710,-695.49,0.00013698,2]
[361229710,1747368929732,-456.3,0.00013698,2]
[361229711,1747368929754,-450.0,0.00013698,2]
[361229712,1747368929776,-450.0,0.00013698,2]
[361229713,1747368929798,-450.0,0.00013698,2]
[361229714,1747368929819,-473.28,0.00013698,2]
[361229715,1747368929842,-450.0,0.00013698,2]
[361229716,1747368929864,-450.0,0.00013698,2]
[361229717,1747368929886,-450.0,0.00013698,2]
[361229718,1747368929908,-450.0,0.00013698,2]
[361229719,1747368929931,-450.0,0.00013698,2]
[361229720,1747368929954,-639.44,0.00013698,2]
[361229721,1747368929976,-699.81,0.00013698,2]
[361229722,1747368929999,-450.0,0.00013698,2]
[361229723,1747368930022,-450.0,0.00013698,2]
[361229724,1747368930046,-5702.64,0.00013698,2]
[361229725,1747368930068,-454.32,0.00013698,2]
[361229726,1747368930090,-450.0,0.00013698,2]
[361229727,1747368930110,-450.0,0.00013698,2]
[361229728,1747368930132,-450.0,0.00013698,2]
[361229729,1747368930155,-450.0,0.00013698,2]
[361229730,1747368930178,-5350.54,0.00013698,2]
[361229731,1747368930203,-1694.0,0.00013698,2]
[361229732,1747368930225,-450.0,0.00013698,2]
[361229733,1747368930247,-1120.65,0.00013698,2]
[361229734,1747368930270,-2188.19,0.00013698,2]
[361229735,1747368930294,-684.17,0.00013698,2]
[361229736,1747368930316,-479.99,0.00013698,2]
[361229737,1747368930337,-299.06808124,0.00013698,2]
[361229738,1747368930358,-474.57,0.00013698,2]
[361229739,1747368930380,-450.0,0.00013698,2]
[361229740,1747368930401,-400.0,0.00013698,2]
[361229741,1747368930426,-450.0,0.00013698,2]
[361229742,1747368930448,-450.0,0.00013698,2]
[361229743,1747368930472,-450.0,0.00013698,2]
[361229744,1747368930495,-400.0,0.00013698,2]
[361229745,1747368930518,-450.0,0.00013698,2]
[361229746,1747368930543,-589.51536301,0.00013698,2]
[361229747,1747368930568,-500.0,0.00013698,2]
[361229748,1747368930595,-577.26687935,0.00013698,2]
[361229749,1747368930617,-500.0,0.00013698,2]
[361229750,1747368930639,-450.0,0.00013698,2]
[361229751,1747368930661,-790.32,0.00013698,2]
[361229752,1747368930682,-450.0,0.00013698,2]
[361229753,1747368930703,-400.0,0.00013698,2]
[361229754,1747368930725,-341.83622171,0.00013698,2]
[361229755,1747368930747,-1401.43,0.00013698,2]
[361229756,1747368930769,-450.0,0.00013698,2]
[361229757,1747368930791,-450.0,0.00013698,2]
[361229758,1747368930812,-450.0,0.00013698,2]
[361229759,1747368930834,-151.0,0.00013698,2]
[361229760,1747368930856,-151.0,0.00013698,2]
[361229761,1747368930879,-450.0,0.00013698,2]
[361229762,1747368930901,-400.0,0.00013698,2]
[361229763,1747368930925,-1150.09,0.00013698,2]
[361229764,1747368930948,-465.19,0.00013698,2]
[361229765,1747368930971,-805.72,0.00013698,2]
[361229766,1747368930997,-160.0,0.00013698,2]
[361229767,1747368931021,-1125.45,0.00013698,2]
[361229768,1747368931048,-450.0,0.00013698,2]
[361229769,1747368931074,-450.0,0.00013698,2]
[361229770,1747368931097,-811.42,0.00013698,2]
[361229771,1747368931121,-450.0,0.00013698,2]
[361229772,1747368931145,-1081.89,0.00013698,2]
[361229773,1747368931169,-869.15,0.00013698,2]
[361229774,1747368931200,-450.0,0.00013698,2]
[361229775,1747368931223,-1508.62,0.00013698,2]
[361229776,1747368931250,-1115.04,0.00013698,2]
[361229777,1747368931274,-2460.96,0.00013698,2]
[361229778,1747368931297,-2450.99,0.00013698,2]
[361229779,1747368931320,-1551.83,0.00013698,2]
[361229780,1747368931341,-450.0,0.00013698,2]
[361229781,1747368931363,-700.42,0.00013698,2]
[361229782,1747368931384,-450.0,0.00013698,2]
[361229783,1747368931406,-450.0,0.00013698,2]
[361229784,1747368931429,-450.0,0.00013698,2]
[361229785,1747368931451,-2107.94,0.00013698,2]
[361229786,1747368931473,-610.27,0.00013698,2]
[361229787,1747368931496,-2318.75,0.00013698,2]
[361229788,1747368931529,-450.0,0.00013698,2]
[361229789,1747368931550,-1114.07,0.00013698,2]
[361229790,1747368931571,-450.0,0.00013698,2]
[361229791,1747368931592,-588.76,0.00013698,2]
[361229792,1747368931613,-450.0,0.00013698,2]
[361229793,1747368931635,-450.0,0.00013698,2]
[361229794,1747368931655,-400.0,0.00013698,2]
[361229795,1747368931677,-450.0,0.00013698,2]
[361229796,1747368931844,-1207.71,0.00013698,2]
[361229797,1747368931883,-1423.76,0.00013698,2]
[361229798,1747368931905,-450.0,0.00013698,2]
[361229799,1747368931927,-450.0,0.00013698,2]
[361229800,1747368931957,-450.0,0.00013698,2]
[361229801,1747368931981,-1232.96,0.00013698,2]
[361229802,1747368932003,-538.78,0.00013698,2]
[361229803,1747368932025,-788.48,0.00013698,2]
[361229804,1747368932047,-3881.17,0.00013698,2]
[361229805,1747368932068,-450.0,0.00013698,2]
[361229806,1747368932091,-5636.46,0.00013698,2]
[361229807,1747368932113,-940.06,0.00013698,2]
[361229808,1747368932134,-1053.95,0.00013698,2]
[361229809,1747368932155,-450.0,0.00013698,2]
[361229810,1747368932176,-450.0,0.00013698,2]
[361229811,1747368932197,-489.72,0.00013698,2]
[361229812,1747368932217,-450.0,0.00013698,2]
[361229813,1747368932238,-938.28,0.00013698,2]
[361229814,1747368932259,-1308.1,0.00013698,2]
[361229815,1747368932281,-788.7,0.00013698,2]
[361229816,1747368932305,-1401.16,0.00013698,2]
[361229817,1747368932327,-450.0,0.00013698,2]
[361229818,1747368932349,-481.64,0.00013698,2]
[361229819,1747368932370,-1035.27,0.00013698,2]
[361229820,1747368932390,-450.0,0.00013698,2]
[361229821,1747368932412,-546.74,0.00013698,2]
[361229822,1747368932435,-796.95,0.00013698,2]
[361229823,1747368932457,-3913.04,0.00013698,2]
[361229824,1747368932479,-544.94,0.00013698,2]
[361229825,1747368932502,-450.0,0.00013698,2]
[361229826,1747368932525,-1157.83,0.00013698,2]
[361229827,1747368932549,-151.0,0.00013698,2]
[361229828,1747368932571,-151.0,0.00013698,2]
[361229829,1747368932594,-151.0,0.00013698,2]
[361229830,1747368932623,-151.0,0.00013698,2]
[361229831,1747368932649,-151.0,0.00013698,2]
[361229832,1747368932672,-151.0,0.00013698,2]
[361229833,1747368932693,-151.0,0.00013698,2]
[361229834,1747368932715,-151.0,0.00013698,2]
[361229835,1747368932737,-252.832419,0.00013698,2]
[361229836,1747368932758,-450.0,0.00013698,2]
[361229837,1747368932779,-1292.87,0.00013698,2]
[361229838,1747368932800,-492.32,0.00013698,2]
[361229839,1747368932821,-500.0,0.00013698,2]
[361229840,1747368932843,-467.80958,0.00013699,2]
[361229841,1747368932865,-153.244279,0.00013699,2]
[361229842,1747368932887,-196.337772,0.00013699,2]
[361229843,1747368932909,-151.0,0.00013699,2]
[361229844,1747368932931,-151.0,0.00013699,2]
[361229845,1747368932951,-151.0,0.00013699,2]
[361229846,1747368932972,-151.0,0.00013699,2]
[361229847,1747368932994,-151.0,0.00013699,2]
[361229848,1747368933016,-284.137614,0.00013699,2]
[361229849,1747368933039,-151.0,0.00013699,2]
[361229850,1747368933060,-151.0,0.00013699,2]
[361229851,1747368933082,-151.0,0.00013699,2]
[361229852,1747368933102,-151.0,0.00013699,2]
[361229853,1747368933124,-500.0,0.00013699,2]
[361229854,1747368933146,-500.0,0.00013699,2]
[361229855,1747368933168,-500.0,0.00013699,2]
[361229856,1747368933189,-517.46964172,0.00013699,2]
[361229857,1747368933212,-500.0,0.00013699,2]
[361229858,1747368933238,-500.0,0.00013699,2]
[361229859,1747368933264,-500.0,0.00013699,2]
[361229860,1747368933287,-500.0,0.00013699,2]
[361229861,1747368933311,-500.0,0.00013699,2]
[361229862,1747368933335,-500.0,0.00013699,2]
[361229863,1747368933358,-500.0,0.00013699,2]
[361229864,1747368933382,-500.0,0.00013699,2]
[361229865,1747368933405,-500.0,0.00013699,2]
[361229866,1747368933435,-500.0,0.00013699,2]
[361229867,1747368933459,-500.0,0.00013699,2]
[361229868,1747368933486,-500.0,0.00013699,2]
[361229869,1747368933513,-500.0,0.00013699,2]
[361229870,1747368933537,-500.0,0.00013699,2]
[361229871,1747368933560,-500.0,0.00013699,2]
[361229872,1747368933583,-500.0,0.00013699,2]
[361229873,1747368933608,-500.0,0.00013699,2]
[361229874,1747368933636,-500.0,0.00013699,2]
[361229875,1747368933660,-500.0,0.00013699,2]
[361229876,1747368933684,-500.0,0.00013699,2]
[361229877,1747368933710,-624.94240243,0.00013699,2]
[361229878,1747368933736,-500.0,0.00013699,2]
[361229879,1747368933762,-500.0,0.00013699,2]
[361229880,1747368933792,-500.0,0.00013699,2]
[361229881,1747368933819,-500.0,0.00013699,2]
[361229882,1747368933844,-500.0,0.00013699,2]
[361229883,1747368933868,-500.0,0.00013699,2]
[361229884,1747368933894,-500.0,0.00013699,2]
[361229885,1747368933919,-500.0,0.00013699,2]
[361229886,1747368933943,-500.0,0.00013699,2]
[361229887,1747368933966,-500.0,0.00013699,2]
[361229888,1747368933993,-500.0,0.00013699,2]
[361229889,1747368934018,-500.0,0.00013699,2]
[361229890,1747368934042,-535.74637588,0.00013699,2]
[361229891,1747368934066,-535.74637588,0.00013699,2]
[361229892,1747368934094,-535.74637588,0.00013699,2]
[361229893,1747368934118,-535.74637588,0.00013699,2]
[361229894,1747368934143,-535.74637588,0.00013699,2]
[361229895,1747368934168,-535.74637588,0.00013699,2]
[361229896,1747368934192,-535.74637588,0.00013699,2]
[361229897,1747368934215,-535.74637588,0.00013699,2]
[361229898,1747368934243,-535.74637588,0.00013699,2]
[361229899,1747368934267,-535.74637588,0.00013699,2]
[361229900,1747368934292,-535.74637588,0.00013699,2]
[361229901,1747368934316,-535.74637588,0.00013699,2]
[361229902,1747368934341,-535.74637588,0.00013699,2]
[361229903,1747368934366,-535.74637588,0.00013699,2]
[361229904,1747368934390,-535.74637588,0.00013699,2]
[361229905,1747368934414,-535.74637588,0.00013699,2]
[361229906,1747368934442,-535.74637588,0.00013699,2]
[361229907,1747368934465,-535.74637588,0.00013699,2]
[361229908,1747368934490,-535.74637588,0.00013699,2]
[361229909,1747368934515,-535.74637588,0.00013699,2]
[361229910,1747368934539,-535.74637588,0.00013699,2]
[361229911,1747368934563,-535.74637588,0.00013699,2]
[361229912,1747368934586,-535.74637588,0.00013699,2]
[361229913,1747368934613,-535.74637588,0.00013699,2]
[361229914,1747368934637,-535.74637588,0.00013699,2]
[361229915,1747368934660,-535.74637588,0.00013699,2]
[361229916,1747368934685,-535.74637588,0.00013699,2]
[361229917,1747368934708,-535.74637588,0.00013699,2]
[361229918,1747368934732,-535.74637588,0.00013699,2]
[361229919,1747368934756,-535.74637588,0.00013699,2]
[361229920,1747368934780,-535.74637588,0.00013699,2]
[361229921,1747368934803,-535.74637588,0.00013699,2]
[361229922,1747368934827,-535.74637588,0.00013699,2]
[361229923,1747368934851,-535.74637588,0.00013699,2]
[361229924,1747368934874,-535.74637588,0.00013699,2]
[361229925,1747368934898,-535.74637588,0.00013699,2]
[361229926,1747368934923,-535.74637588,0.00013699,2]
[361229927,1747368934947,-535.74637588,0.00013699,2]
[361229928,1747368934972,-535.74637589,0.00013699,2]
[361229929,1747368934996,-535.74637589,0.00013699,2]
[361229930,1747368935021,-535.74637589,0.00013699,2]
[361229931,1747368935045,-535.74637589,0.00013699,2]
[361229932,1747368935068,-535.74637589,0.00013699,2]
[361229933,1747368935093,-535.74637589,0.00013699,2]
[361229934,1747368935117,-535.74637589,0.00013699,2]
[361229935,1747368935141,-535.74637589,0.00013699,2]
[361229936,1747368935165,-535.74637589,0.00013699,2]
[361229937,1747368935189,-535.74637589,0.00013699,2]
[361229938,1747368935215,-535.74637589,0.00013699,2]
[361229939,1747368935242,-535.74637589,0.00013699,2]
[361229940,1747368935265,-535.74637589,0.00013699,2]
[361229941,1747368935289,-535.74637589,0.00013699,2]
[361229942,1747368935312,-535.74637589,0.00013699,2]
[361229943,1747368935336,-535.74637589,0.00013699,2]
[361229944,1747368935360,-535.74637589,0.00013699,2]
[361229945,1747368935525,-535.74637589,0.00013699,2]
[361229946,1747368935554,-535.74637589,0.00013699,2]
[361229947,1747368935575,-172.24211896,0.00013784,2]
[361229948,1747368935597,-157.828058,0.000138,5]
[361229949,1747368935618,-588.9,0.00013835,2]
[361229950,1747368935640,-494.44,0.00013835,2]
[361229951,1747368935661,-575.61010712,0.00013835,2]
[361229952,1747368935683,-450.0,0.00013835,2]
[361229953,1747368935705,-450.0,0.00013835,2]
[361229954,1747368935725,-568.838351,0.00013835,2]
[361229955,1747368935748,-450.0,0.00013835,2]
[361229956,1747368935769,-450.0,0.00013835,2]
[361229957,1747368935790,-450.0,0.00013835,2]
[361229958,1747368935812,-450.0,0.00013835,2]
[361229959,1747368935833,-450.0,0.00013835,2]
[361229960,1747368935855,-450.0,0.00013835,2]
[361229961,1747368935876,-450.0,0.00013835,2]
[361229962,1747368935897,-450.0,0.00013835,2]
[361229963,1747368935918,-450.0,0.00013835,2]
[361229964,1747368935939,-450.0,0.00013835,2]
[361229965,1747368935961,-468.33,0.00013835,2]
[361229966,1747368935983,-1159.14,0.00013835,2]
[361229967,1747368936006,-450.0,0.00013835,2]
[361229968,1747368936028,-450.0,0.00013835,2]
[361229969,1747368936050,-450.0,0.00013835,2]
[361229970,1747368936071,-450.0,0.00013835,2]
[361229971,1747368936094,-450.0,0.00013835,2]
[361229972,1747368936115,-468.17,0.00013835,2]
[361229973,1747368936136,-450.0,0.00013835,2]
[361229974,1747368936158,-1027.76,0.00013835,2]
[361229975,1747368936179,-450.0,0.00013835,2]
[361229976,1747368936200,-450.0,0.00013835,2]
[361229977,1747368936221,-679.02,0.00013835,2]
[361229978,1747368936245,-772.94,0.00013835,2]
[361229979,1747368936266,-450.0,0.00013835,2]
[361229980,1747368936287,-464.44,0.00013835,2]
[361229981,1747368936308,-450.0,0.00013835,2]
[361229982,1747368936329,-818.93,0.00013835,2]
[361229983,1747368936350,-450.0,0.00013835,2]
[361229984,1747368936371,-708.36,0.00013835,2]
[361229985,1747368936391,-151.0,0.00013835,2]
[361229986,1747368936412,-151.0,0.00013835,2]
[361229987,1747368936435,-151.0,0.00013835,2]
[361229988,1747368936456,-524.57635743,0.00013835,2]
[361229989,1747368936479,-450.0,0.00013835,2]
[361229990,1747368936503,-450.0,0.00013835,2]
[361229991,1747368936526,-641.59,0.00013835,2]
[361229992,1747368936549,-450.0,0.00013835,2]
[361229993,1747368936569,-1404.33,0.00013835,2]
[361229994,1747368936591,-450.0,0.00013835,2]
[361229995,1747368936613,-1279.9,0.00013835,2]
[361229996,1747368936634,-752.48,0.00013835,2]
[361229997,1747368936655,-450.0,0.00013835,2]
[361229998,1747368936676,-450.0,0.00013835,2]
[361229999,1747368936697,-450.0,0.00013835,2]
[361230000,1747368936718,-450.0,0.00013835,2]
[361230001,1747368936739,-450.0,0.00013835,2]
[361230002,1747368936761,-729.22,0.00013835,2]
[361230003,1747368936782,-864.76,0.00013835,2]
[361230004,1747368936803,-450.0,0.00013835,2]
[361230005,1747368936824,-523.41,0.00013835,2]
[361230006,1747368936845,-450.0,0.00013835,2]
[361230007,1747368936867,-450.0,0.00013835,2]
[361230008,1747368936889,-695.49,0.00013835,2]
[361230009,1747368936911,-456.3,0.00013835,2]
[361230010,1747368936935,-450.0,0.00013835,2]
[361230011,1747368936958,-450.0,0.00013835,2]
[361230012,1747368936980,-450.0,0.00013835,2]
[361230013,1747368937002,-473.28,0.00013835,2]
[361230014,1747368937025,-450.0,0.00013835,2]
[361230015,1747368937048,-450.0,0.00013835,2]
[361230016,1747368937069,-230.8943326,0.00013835,2]
[361230017,1747368937091,-450.0,0.00013835,2]
[361230018,1747368937113,-450.0,0.00013835,2]
[361230019,1747368937136,-639.44,0.00013835,2]
[361230020,1747368937157,-699.81,0.00013835,2]
[361230021,1747368937179,-450.0,0.00013835,2]
[361230022,1747368937201,-450.0,0.00013835,2]
[361230023,1747368937225,-5702.64,0.00013835,2]
[361230024,1747368937247,-454.32,0.00013835,2]
[361230025,1747368937268,-450.0,0.00013835,2]
[361230026,1747368937289,-450.0,0.00013835,2]
[361230027,1747368937310,-450.0,0.00013835,2]
[361230028,1747368937331,-450.0,0.00013835,2]
[361230029,1747368937353,-5350.54,0.00013835,2]
[361230030,1747368937375,-1694.0,0.00013835,2]
[361230031,1747368937396,-450.0,0.00013835,2]
[361230032,1747368937419,-1120.65,0.00013835,2]
[361230033,1747368937447,-2188.19,0.00013835,2]
[361230034,1747368937469,-684.17,0.00013835,2]
[361230035,1747368937491,-479.99,0.00013835,2]
[361230036,1747368937513,-474.57,0.00013835,2]
[361230037,1747368937535,-450.0,0.00013835,2]
[361230038,1747368937556,-450.0,0.00013835,2]
[361230039,1747368937578,-450.0,0.00013835,2]
[361230040,1747368937600,-450.0,0.00013835,2]
[361230041,1747368937621,-261.86325529,0.00013835,2]
[361230042,1747368937644,-790.32,0.00013835,2]
[361230043,1747368937666,-1401.43,0.00013835,2]
[361230044,1747368937688,-450.0,0.00013835,2]
[361230045,1747368937710,-450.0,0.00013835,2]
[361230046,1747368937731,-450.0,0.00013835,2]
[361230047,1747368937753,-450.0,0.00013835,2]
[361230048,1747368937775,-1150.09,0.00013835,2]
[361230049,1747368937797,-465.19,0.00013835,2]
[361230050,1747368937819,-805.72,0.00013835,2]
[361230051,1747368937842,-1125.45,0.00013835,2]
[361230052,1747368937865,-450.0,0.00013835,2]
[361230053,1747368937887,-450.0,0.00013835,2]
[361230054,1747368937910,-811.42,0.00013835,2]
[361230055,1747368937932,-450.0,0.00013835,2]
[361230056,1747368937953,-1081.89,0.00013835,2]
[361230057,1747368937974,-869.15,0.00013835,2]
[361230058,1747368937995,-450.0,0.00013835,2]
[361230059,1747368938017,-1508.62,0.00013835,2]
[361230060,1747368938038,-1115.04,0.00013835,2]
[361230061,1747368938060,-2460.96,0.00013835,2]
[361230062,1747368938083,-2450.99,0.00013835,2]
[361230063,1747368938107,-1551.83,0.00013835,2]
[361230064,1747368938128,-450.0,0.00013835,2]
[361230065,1747368938151,-700.42,0.00013835,2]
[361230066,1747368938172,-450.0,0.00013835,2]
[361230067,1747368938192,-450.0,0.00013835,2]
[361230068,1747368938213,-573.54739907,0.00013835,2]
[361230069,1747368938236,-2107.94,0.00013835,2]
[361230070,1747368938258,-610.27,0.00013835,2]
[361230071,1747368938280,-2318.75,0.00013835,2]
[361230072,1747368938302,-450.0,0.00013835,2]
[361230073,1747368938324,-1114.07,0.00013835,2]
[361230074,1747368938346,-450.0,0.00013835,2]